bitfinex/quotes_ETHUSD_20250821
["timestamp","ask_amount","ask_price","bid_price","bid_amount"]
[1755758064173,0.00900363,4306.3,4306.2,10.83703305]
[1755758065251,0.00900363,4306.3,4306.2,11.16153995]
[1755758066048,0.022,4306.8,4306.7,2.98196345]
[1755758066251,0.022,4306.8,4306.7,17.40716301]
[1755758066448,0.022,4306.8,4306.7,18.29436991]
[1755758066777,0.022,4306.8,4306.7,18.73736991]
[1755758073201,0.022,4306.8,4306.7,15.19936991]
[1755758073495,0.022,4306.8,4306.7,18.73636991]
[1755758074486,0.022,4306.8,4306.7,18.91044726]
[1755758080276,0.022,4306.8,4306.7,15.37344726]
[1755758080483,0.022,4306.8,4306.7,23.71824036]
[1755758081298,0.022,4306.8,4306.7,24.16414036]
[1755758088389,0.022,4306.8,4306.7,24.48864726]
[1755758091295,0.00200352,4306.8,4306.7,24.48864726]
[1755758092838,0.00200352,4306.8,4306.7,28.67864726]
[1755758099355,0.30600352,4306.8,4306.7,25.14264726]
[1755758099636,0.76350352,4306.8,4306.7,26.94394036]
[1755758100005,0.76350352,4306.8,4306.7,24.06894036]
[1755758100206,0.76350352,4306.8,4306.7,27.60394036]
[1755758101215,0.48446683,4306.8,4306.7,27.60394036]
[1755758101835,0.48446683,4306.8,4306.7,27.92844726]
[1755758101836,0.02696683,4306.8,4306.7,27.92844726]
[1755758102034,0.002,4307.7,4307.0,0.66]
[1755758102205,0.002,4307.7,4307.6,9.90537787]
[1755758102411,0.002,4307.7,4307.6,16.55637787]
[1755758102606,0.5304,4307.7,4307.6,14.23489956]
[1755758103237,0.5304,4307.7,4307.6,16.55637787]
[1755758103538,0.5304,4307.7,4307.6,17.08677787]
[1755758103739,0.5304,4307.7,4307.6,14.76529956]
[1755758103935,0.5304,4307.7,4307.6,17.08677787]
[1755758104609,0.5304,4307.7,4307.6,14.76529956]
[1755758104810,0.5304,4307.7,4307.6,17.08677787]
[1755758105737,0.5304,4307.7,4307.6,14.76529956]
[1755758112316,0.5304,4307.7,4307.6,3.6464]
[1755758112520,0.5304,4307.7,4307.6,7.0644]
[1755758115763,0.5304,4307.7,4307.6,3.5304]
[1755758116070,0.5304,4307.7,4307.6,7.0644]
[1755758118247,0.5304,4307.7,4307.6,14.64829956]
[1755758121678,0.0729,4307.7,4307.6,14.64829956]
[1755758122257,0.0729,4307.7,4307.6,11.11429956]
[1755758122624,0.0729,4307.7,4307.6,14.64829956]
[1755758127470,0.0729,4307.7,4307.6,7.0644]
[1755758127670,0.0729,4307.7,4307.6,14.64829956]
[1755758128299,0.5383,4307.7,4307.6,7.0644]
[1755758128502,0.0729,4307.7,4307.6,14.64829956]
[1755758133814,0.002,4307.7,4307.6,14.64829956]
[1755758134108,0.2884,4307.7,4307.6,14.64829956]
[1755758135525,0.2884,4307.7,4307.6,17.82867787]
[1755758135526,0.002,4307.7,4307.6,17.82867787]
[1755758136310,0.002,4307.7,4307.6,14.65834866]
[1755758138315,0.002,4307.7,4307.6,15.50082916]
[1755758139288,0.002,4307.7,4307.6,15.04982916]
[1755758139489,0.002,4307.7,4307.6,15.50082916]
[1755758140298,0.002,4307.7,4307.6,17.82230747]
[1755758140612,0.002,4307.7,4307.6,15.50082916]
[1755758140805,0.002,4307.7,4307.6,17.82230747]
[1755758141211,0.002,4307.7,4307.6,15.50082916]
[1755758142113,0.002,4307.7,4307.6,18.47680747]
[1755758145191,0.002,4307.7,4307.6,16.15532916]
[1755758146218,0.002,4307.7,4307.6,18.47680747]
[1755758147222,0.002,4307.7,4307.6,16.15532916]
[1755758147921,0.002,4307.7,4307.6,18.47680747]
[1755758148122,0.002,4307.7,4307.6,16.15532916]
[1755758148723,0.002,4307.7,4307.6,18.47680747]
[1755758151115,0.002,4307.7,4307.6,22.66680747]
[1755758152725,0.02,4307.8,4307.7,5.98142442]
[1755758152891,0.002,4308.2,4308.1,12.89873804]
[1755758153096,0.002,4308.2,4308.1,16.84303804]
[1755758153319,0.002,4308.2,4308.1,17.28853804]
[1755758153696,0.002,4308.2,4308.1,18.44273804]
[1755758155825,0.002,4308.6,4308.5,2.32099338]
[1755758156011,0.02,4310.8,4309.3,3.0]
[1755758156012,0.4742,4309.9,4309.3,3.0]
[1755758156322,0.4742,4309.9,4309.2,7.57752916]
[1755758156323,0.02,4310.8,4309.7,10.57752916]
[1755758156529,0.4742,4310.3,4309.7,14.10852916]
[1755758156700,0.4742,4310.3,4309.7,14.40582916]
[1755758157301,0.4742,4310.3,4309.7,14.88002916]
[1755758157497,0.4742,4310.3,4309.7,7.0052]
[1755758157733,0.4742,4310.3,4309.7,14.58272916]
[1755758158328,0.3219,4309.8,4309.7,14.58272916]
[1755758158703,0.3219,4309.8,4309.7,14.75384587]
[1755758159529,0.02,4309.8,4309.7,14.75384587]
[1755758159900,0.02,4309.8,4309.7,15.05114587]
[1755758160106,0.02,4309.8,4309.7,14.75384587]
[1755758161125,0.02,4309.8,4309.7,17.81699299]
[1755758161325,0.02,4309.8,4309.7,18.47699299]
[1755758163510,0.02,4309.8,4309.7,16.15664587]
[1755758164304,0.02,4309.8,4309.7,18.47699299]
[1755758164508,0.02,4309.8,4309.7,16.15664587]
[1755758164704,0.02,4309.8,4309.7,15.41384587]
[1755758164936,0.3219,4309.8,4309.7,15.41284587]
[1755758165441,0.02,4309.8,4309.7,15.41284587]
[1755758166012,0.02,4309.8,4309.7,15.52884587]
[1755758166424,0.02,4309.8,4309.7,18.59199299]
[1755758167316,0.02,4309.8,4309.7,16.27164587]
[1755758167746,0.02,4309.8,4309.7,18.59199299]
[1755758171446,0.002,4310.3,4310.2,5.98007795]
[1755758171636,0.002,4310.3,4310.2,17.50040711]
[1755758171840,0.002,4310.3,4310.2,17.95520711]
[1755758172236,0.002,4310.3,4310.2,18.04819011]
[1755758172624,0.02,4310.8,4310.7,13.557338]
[1755758172824,0.02,4310.8,4310.7,17.384138]
[1755758173028,0.02,4310.8,4310.7,17.500138]
[1755758173645,0.02,4310.8,4310.7,15.18032916]
[1755758175321,0.02,4310.8,4310.7,15.61982916]
[1755758175528,0.02,4310.8,4310.7,17.939638]
[1755758176227,0.02,4310.8,4310.7,15.61982916]
[1755758176853,0.116,4311.9,4310.9,0.66]
[1755758177053,0.4395,4312.3,4311.7,10.57752916]
[1755758177355,0.4395,4312.3,4311.7,14.22152916]
[1755758177557,0.3284,4311.8,4311.7,14.22152916]
[1755758177858,0.3284,4311.8,4311.7,16.98029998]
[1755758178259,0.3284,4311.8,4311.7,14.66102916]
[1755758178761,0.02,4311.8,4311.7,14.66102916]
[1755758179058,0.02,4311.8,4311.7,17.73289998]
[1755758179928,0.02,4311.8,4311.7,17.27809998]
[1755758180228,0.02,4311.8,4311.7,17.73289998]
[1755758180629,0.02,4311.8,4311.7,18.39289998]
[1755758181228,0.02,4311.8,4311.7,18.71740688]
[1755758182042,0.4395,4313.0,4312.2,0.66]
[1755758182242,0.4395,4313.4,4312.7,11.23752916]
[1755758182467,0.4395,4313.1,4312.7,14.88052916]
[1755758182761,0.02,4313.8,4312.7,14.22052916]
[1755758182762,0.7679,4312.8,4312.7,14.22052916]
[1755758183072,0.7179,4312.8,4312.7,14.22052916]
[1755758183729,0.116,4313.3,4312.8,3.0]
[1755758183970,0.5227,4313.3,4313.0,10.57752916]
[1755758184129,0.5227,4313.3,4313.1,3.527]
[1755758184328,0.7151,4313.2,4313.1,3.527]
[1755758185632,0.02,4313.8,4313.1,3.527]
[1755758185865,0.116,4313.6,4313.5,7.57752916]
[1755758186160,0.116,4313.6,4313.5,3.527]
[1755758186161,0.8311,4313.6,4313.5,3.527]
[1755758187161,0.8311,4313.6,4313.5,3.69834886]
[1755758188330,0.3084,4313.6,4313.5,11.27587802]
[1755758188766,0.7151,4313.6,4313.5,11.27587802]
[1755758190456,0.3084,4313.6,4313.5,11.27587802]
[1755758197875,0.002,4313.7,4313.5,11.27587802]
[1755758199149,0.002,4313.7,4313.5,3.69834886]
[1755758199863,0.002,4313.7,4313.6,7.87532916]
[1755758200150,0.002,4313.7,4313.6,8.33012916]
[1755758200553,0.002,4313.7,4313.6,7.87532916]
[1755758200758,0.002,4313.7,4313.6,8.44612916]
[1755758201884,0.002,4313.7,4313.6,11.44612916]
[1755758202381,0.002,4313.7,4313.6,11.56212916]
[1755758203057,0.002,4313.7,4313.6,12.33569848]
[1755758203245,0.002,4313.7,4313.6,14.65394773]
[1755758203750,0.002,4313.7,4313.6,12.33569848]
[1755758204304,0.002,4313.7,4313.6,14.65394773]
[1755758208605,0.002,4313.7,4313.6,14.63061959]
[1755758211788,0.002,4313.7,4313.6,14.17581959]
[1755758212316,0.002,4313.7,4313.6,14.64611959]
[1755758212721,0.002,4313.7,4313.6,12.32787034]
[1755758212878,0.002,4313.7,4313.6,11.85757034]
[1755758213313,0.002,4313.7,4313.6,15.38157034]
[1755758213511,0.002,4313.7,4313.6,15.85187034]
[1755758213713,0.002,4313.7,4313.6,18.17011959]
[1755758216124,0.002,4313.7,4313.6,15.85187034]
[1755758216422,0.002,4313.7,4313.6,18.17011959]
[1755758217091,0.002,4313.7,4313.6,14.64611959]
[1755758217291,0.002,4313.7,4313.6,18.17011959]
[1755758219033,0.3134,4313.7,4313.6,3.34556932]
[1755758219191,0.3134,4313.7,4313.6,14.44709848]
[1755758219702,0.002,4313.7,4313.6,14.44709848]
[1755758220617,0.3134,4313.7,4313.6,3.34556932]
[1755758220830,0.7665,4313.7,4313.6,3.64]
[1755758221525,0.8825,4313.7,4313.6,3.524]
[1755758222829,0.3134,4313.7,4313.6,14.10152916]
[1755758223122,0.3134,4313.7,4313.6,6.64]
[1755758223328,0.3134,4313.7,4313.6,14.21752916]
[1755758225028,0.7665,4313.7,4313.6,3.0]
[1755758225232,0.7665,4313.7,4313.6,6.524]
[1755758225541,0.8825,4313.7,4313.6,3.524]
[1755758227352,0.4294,4313.7,4313.6,3.524]
[1755758227641,0.002,4313.7,4313.6,6.524]
[1755758229735,0.002,4313.7,4313.6,6.8378]
[1755758230543,0.002,4313.7,4313.6,6.524]
[1755758231524,0.002,4313.7,4313.6,6.8288]
[1755758231726,0.002,4313.7,4313.6,9.60684925]
[1755758231929,0.002,4313.7,4313.6,8.0646]
[1755758232310,0.002,4313.7,4313.6,10.38284925]
[1755758233615,0.002,4313.7,4313.6,10.50084925]
[1755758235353,0.002,4313.7,4313.6,17.29937841]
[1755758235525,0.002,4313.7,4313.6,14.98112916]
[1755758235728,0.002,4313.7,4313.6,17.29937841]
[1755758238865,0.002,4313.7,4313.6,17.39229841]
[1755758239721,0.002,4313.7,4313.6,18.05329841]
[1755758241436,0.002,4313.7,4313.6,22.24329841]
[1755758246136,0.002,4313.7,4313.6,22.51038865]
[1755758248856,0.002,4313.7,4313.6,21.47869841]
[1755758249860,0.002,4313.7,4313.6,21.78349841]
[1755758252046,0.3013,4313.7,4313.6,19.16044916]
[1755758252245,0.3013,4313.7,4313.6,21.47869841]
[1755758254473,0.002,4313.7,4313.6,19.16044916]
[1755758254877,0.002,4313.7,4313.6,21.47869841]
[1755758259289,0.3013,4313.7,4313.6,19.16044916]
[1755758259482,0.3013,4313.7,4313.6,18.50044916]
[1755758259850,0.3013,4313.7,4313.6,20.81869841]
[1755758260058,0.3013,4313.7,4313.6,18.50044916]
[1755758260459,0.002,4313.7,4313.6,18.50044916]
[1755758260656,0.002,4313.7,4313.6,22.24329841]
[1755758261858,0.002,4313.7,4313.6,22.52328865]
[1755758263405,0.3085,4313.7,4313.6,19.15944916]
[1755758263602,0.3085,4313.7,4313.6,21.47769841]
[1755758264385,0.3085,4313.7,4313.6,17.28769841]
[1755758264386,0.002,4313.7,4313.6,17.28769841]
[1755758264562,0.002,4313.7,4313.6,17.58789841]
[1755758264761,0.002,4313.7,4313.6,18.06059841]
[1755758264988,0.002,4313.7,4313.6,18.17545797]
[1755758265500,0.002,4313.7,4313.6,17.58789841]
[1755758265782,0.002,4313.7,4313.6,18.06059841]
[1755758268267,0.02,4313.8,4313.6,18.06059841]
[1755758268268,0.02,4313.8,4313.7,5.97819551]
[1755758268458,0.02,4313.8,4313.7,6.54548575]
[1755758268790,0.02,4313.8,4313.7,7.01818575]
[1755758270700,0.02,4313.8,4313.7,6.27839551]
[1755758271259,0.02,4313.8,4313.7,6.61519551]
[1755758272894,0.022,4313.8,4313.7,6.61519551]
[1755758273485,0.3285,4313.8,4313.7,3.0]
[1755758273709,0.3285,4313.8,4313.7,14.09952916]
[1755758275334,0.022,4313.8,4313.7,17.49392467]
[1755758275671,0.3285,4313.8,4313.7,14.87552916]
[1755758276396,0.3285,4313.8,4313.7,17.19372467]
[1755758276914,0.3285,4313.8,4313.7,14.87552916]
[1755758277609,0.3285,4313.8,4313.7,17.19372467]
[1755758278703,0.3285,4313.8,4313.7,14.87552916]
[1755758278874,0.3285,4313.8,4313.7,11.35352916]
[1755758279091,0.3285,4313.8,4313.7,14.87552916]
[1755758280224,0.7608,4313.8,4313.7,3.116]
[1755758280424,0.7608,4313.8,4313.7,0.116]
[1755758280731,0.7608,4313.8,4313.7,3.522]
[1755758280892,0.8768,4313.8,4313.7,3.522]
[1755758281416,0.8768,4313.8,4313.6,0.001]
[1755758281593,8.00982916,4313.7,4313.6,0.001]
[1755758281923,9.16176208,4313.7,4313.6,0.001]
[1755758282590,9.82176208,4313.7,4313.6,0.001]
[1755758286233,9.38946208,4313.7,4313.6,0.001]
[1755758287502,12.38946208,4313.7,4313.6,0.001]
[1755758288228,12.42286208,4313.7,4313.6,0.001]
[1755758289000,15.94486208,4313.7,4313.6,0.001]
[1755758291428,15.94486208,4313.7,4313.1,0.001]
[1755758291429,3.66,4313.6,4313.1,0.001]
[1755758291742,11.66592916,4313.2,4313.1,0.001]
[1755758292091,11.69342916,4313.2,4313.1,0.001]
[1755758293434,15.21642916,4313.2,4313.1,0.001]
[1755758294937,15.21642916,4313.2,4312.8,0.001]
[1755758295138,11.23752916,4312.8,4312.7,0.001]
[1755758295300,13.00513208,4312.8,4312.7,0.001]
[1755758295502,13.03543208,4312.8,4312.7,0.001]
[1755758296338,3.66,4312.7,4312.3,0.001]
[1755758296541,11.54992916,4312.4,4312.3,0.001]
[1755758296739,11.66592916,4312.4,4312.3,0.001]
[1755758297034,13.21517208,4312.4,4312.3,0.001]
[1755758297340,3.66,4312.3,4312.2,0.001]
[1755758297515,4.1695,4312.3,4312.2,0.001]
[1755758297715,4.1998,4312.3,4312.2,0.001]
[1755758298541,7.5238,4312.3,4312.2,0.001]
[1755758298736,9.41770721,4312.3,4312.2,0.001]
[1755758299246,5.66340721,4312.3,4312.2,0.001]
[1755758299442,14.41102916,4312.3,4312.2,0.001]
[1755758299802,11.54702916,4312.3,4312.2,0.001]
[1755758299999,15.07102916,4312.3,4312.2,0.001]
[1755758301241,11.54702916,4312.3,4312.2,0.001]
[1755758301438,15.07102916,4312.3,4312.2,0.001]
[1755758301741,16.59276208,4312.3,4312.2,0.001]
[1755758302658,16.62316208,4312.3,4312.2,0.001]
[1755758304737,3.66,4312.2,4311.8,0.02]
[1755758304912,11.66592916,4312.0,4311.8,0.02]
[1755758305108,15.18992916,4312.0,4311.8,0.02]
[1755758305313,16.91145537,4312.0,4311.8,0.02]
[1755758305649,3.86,4311.9,4311.8,0.02]
[1755758305951,4.1999,4311.9,4311.8,0.02]
[1755758306444,4.1999,4311.9,4311.8,0.021]
[1755758307617,4.1999,4311.9,4310.8,0.021]
[1755758307816,8.35352916,4310.9,4310.8,0.021]
[1755758308012,15.18422916,4310.9,4310.8,0.021]
[1755758310036,15.18522916,4310.9,4310.8,0.021]
[1755758311915,15.30251568,4310.9,4310.8,0.021]
[1755758312340,15.18522916,4310.9,4310.8,0.021]
[1755758312544,16.70375208,4310.9,4310.8,0.021]
[1755758313351,17.19827799,4310.9,4310.8,0.021]
[1755758316225,13.67327799,4310.9,4310.8,0.021]
[1755758316426,17.19827799,4310.9,4310.8,0.021]
[1755758318569,13.67327799,4310.9,4310.8,0.021]
[1755758318974,17.19827799,4310.9,4310.8,0.021]
[1755758319343,13.67327799,4310.9,4310.8,0.021]
[1755758319544,16.89157799,4310.9,4310.8,0.021]
[1755758319766,16.99057799,4310.9,4310.8,0.021]
[1755758320672,13.46557799,4310.9,4310.8,0.021]
[1755758320881,16.99157799,4310.9,4310.8,0.021]
[1755758322367,17.20673651,4310.9,4310.8,0.021]
[1755758322566,17.20573651,4310.9,4310.8,0.021]
[1755758323074,17.10673651,4310.9,4310.8,0.8059]
[1755758323270,17.10773651,4310.9,4310.8,0.8059]
[1755758323683,13.58173651,4310.9,4310.8,0.8059]
[1755758323841,13.58173651,4310.9,4310.8,0.3343]
[1755758324047,5.12904883,4310.9,4310.8,0.8059]
[1755758324269,4.13652591,4310.9,4310.8,0.8059]
[1755758324485,0.116,4310.9,4310.8,0.8059]
[1755758324647,3.642,4310.9,4310.8,0.8059]
[1755758326977,3.642,4310.9,4310.8,0.3343]
[1755758326978,6.642,4310.9,4310.8,0.3343]
[1755758327179,8.92017322,4310.9,4310.8,0.021]
[1755758327572,8.92257322,4310.9,4310.8,0.021]
[1755758327768,8.92017322,4310.9,4310.8,0.021]
[1755758330789,8.91917322,4310.9,4310.8,0.8059]
[1755758331156,5.39417322,4310.9,4310.8,0.021]
[1755758331357,9.01817322,4310.9,4310.8,0.021]
[1755758333995,5.39417322,4310.9,4310.8,0.021]
[1755758334308,8.91917322,4310.9,4310.8,0.8059]
[1755758334689,8.91917322,4310.9,4310.8,0.3343]
[1755758335087,4.73417322,4310.9,4310.8,0.8059]
[1755758335286,14.71474946,4310.9,4310.8,0.8059]
[1755758337188,14.71474946,4310.9,4310.8,0.3343]
[1755758337391,14.71474946,4310.9,4310.8,0.8059]
[1755758339005,7.1372203,4310.9,4310.8,0.8059]
[1755758339160,14.21852916,4310.9,4310.8,0.8059]
[1755758339362,15.64038208,4310.9,4310.8,0.8059]
[1755758342559,4.53785292,4310.9,4310.8,0.8059]
[1755758342917,14.21852916,4310.9,4310.8,0.8059]
[1755758343266,14.87852916,4310.9,4310.8,0.021]
[1755758344278,14.97752916,4310.9,4310.8,0.021]
[1755758344680,11.45252916,4310.9,4310.8,0.021]
[1755758344887,16.12278208,4310.9,4310.8,0.021]
[1755758345266,16.62074874,4310.9,4310.8,0.021]
[1755758348204,16.86094874,4310.9,4310.8,0.021]
[1755758348568,17.07696942,4310.9,4310.8,0.021]
[1755758349496,17.42247431,4310.9,4310.8,0.021]
[1755758350891,5.98074515,4310.9,4310.8,0.3343]
[1755758351071,12.06738026,4310.9,4310.8,0.7677]
[1755758351271,15.37649582,4310.9,4310.8,0.7677]
[1755758351898,15.37649582,4310.9,4310.8,0.3343]
[1755758352094,15.37889582,4310.9,4310.8,0.021]
[1755758352474,15.59477829,4310.9,4310.8,0.021]
[1755758352688,17.67885839,4310.9,4310.8,0.021]
[1755758352895,18.08442881,4310.9,4310.8,0.021]
[1755758353074,14.55942881,4310.9,4310.8,0.021]
[1755758353275,17.84662881,4310.9,4310.8,0.021]
[1755758353492,18.08442881,4310.9,4310.8,0.021]
[1755758354217,17.86849796,4310.9,4310.8,0.021]
[1755758354504,18.08433198,4310.9,4310.8,0.021]
[1755758354681,18.08429775,4310.9,4310.8,0.021]
[1755758355105,3.66,4310.8,4310.3,0.001]
[1755758355424,11.24232916,4310.4,4310.3,0.001]
[1755758355581,15.38129582,4310.4,4310.3,0.001]
[1755758357087,3.66,4310.3,4309.9,0.001]
[1755758357286,11.45262916,4310.0,4309.9,0.001]
[1755758357507,6.26608232,4310.0,4309.9,0.001]
[1755758357804,12.06715589,4310.0,4309.9,0.7248]
[1755758357984,15.59215589,4310.0,4309.9,0.7248]
[1755758358180,15.57006782,4310.0,4309.9,0.001]
[1755758363186,3.66,4309.9,4309.6,0.001]
[1755758363387,11.54492916,4309.7,4309.6,0.001]
[1755758363684,16.79233093,4309.7,4309.6,0.001]
[1755758364120,13.26633093,4309.7,4309.6,0.001]
[1755758364316,16.79233093,4309.7,4309.6,0.001]
[1755758365797,17.28819997,4309.7,4309.6,0.001]
[1755758367207,11.23752916,4308.9,4308.8,0.02]
[1755758367408,15.88728208,4308.9,4308.8,0.3104]
[1755758367927,16.00328208,4308.9,4308.8,0.7438]
[1755758368928,16.00328208,4308.9,4308.8,0.02]
[1755758370926,16.00328208,4308.9,4308.8,0.3104]
[1755758371140,16.00328208,4308.9,4308.8,0.7438]
[1755758376719,12.47728208,4308.9,4308.8,0.7438]
[1755758376920,13.00328208,4308.9,4308.8,0.7438]
[1755758378427,15.37526508,4308.9,4308.8,0.7438]
[1755758380552,11.84926508,4308.9,4308.8,0.7438]
[1755758380757,12.47728208,4308.9,4308.8,0.7438]
[1755758381056,16.00428208,4308.9,4308.8,0.7438]
[1755758386149,16.00428208,4308.9,4308.8,0.02]
[1755758386843,16.00428208,4308.9,4308.8,0.7422]
[1755758389152,16.00428208,4308.9,4308.8,0.7432]
[1755758391350,16.00428208,4308.9,4308.8,0.021]
[1755758392250,16.50184544,4308.9,4308.8,0.021]
[1755758392758,16.50184544,4308.9,4308.8,0.4559]
[1755758393154,16.50184544,4308.9,4308.8,0.7432]
[1755758395659,12.97484544,4308.9,4308.8,0.7432]
[1755758395838,16.00328208,4308.9,4308.8,0.7432]
[1755758397258,14.21952916,4308.9,4308.8,0.7432]
[1755758402281,14.87952916,4308.9,4308.8,0.021]
[1755758402566,14.87952916,4308.9,4308.8,0.7432]
[1755758404858,15.19452916,4308.9,4308.3,0.001]
[1755758405067,11.35352916,4308.4,4308.3,0.001]
[1755758405365,14.87952916,4308.4,4308.3,0.7232]
[1755758411385,14.21952916,4308.4,4308.3,0.7232]
[1755758411589,11.21952916,4308.4,4308.3,0.7232]
[1755758417060,3.642,4308.4,4308.3,0.7232]
[1755758417278,11.21952916,4308.4,4308.3,0.7232]
[1755758417493,7.69352916,4308.4,4308.3,0.7232]
[1755758417696,11.21952916,4308.4,4308.3,0.7232]
[1755758418497,7.69352916,4308.4,4308.3,0.7232]
[1755758418706,11.21852916,4308.4,4308.3,0.7232]
[1755758419262,7.69352916,4308.4,4308.3,0.7232]
[1755758419462,0.116,4308.4,4308.3,0.7232]
[1755758419657,3.641,4308.4,4308.3,0.7232]
[1755758421107,11.21852916,4308.4,4308.3,0.7232]
[1755758422577,12.34038208,4308.4,4308.3,0.001]
[1755758423090,12.34038208,4308.4,4308.3,0.4721]
[1755758423422,12.34038208,4308.4,4308.3,0.7599]
[1755758425925,8.81538208,4308.4,4308.3,0.7599]
[1755758426084,12.34038208,4308.4,4308.3,0.7599]
[1755758428028,0.116,4308.4,4308.3,0.7599]
[1755758428188,3.641,4308.4,4308.3,0.7599]
[1755758429428,3.641,4308.4,4308.3,0.001]
[1755758429632,3.9332,4308.4,4308.3,0.001]
[1755758430046,3.641,4308.4,4308.3,0.001]
[1755758430358,11.58262916,4308.4,4308.3,0.7599]
[1755758433720,8.05762916,4308.4,4308.3,0.7599]
[1755758434020,11.58262916,4308.4,4308.3,0.7599]
[1755758435148,8.05762916,4308.4,4308.3,0.7599]
[1755758435321,11.58262916,4308.4,4308.3,0.7599]
[1755758436856,11.58262916,4308.4,4308.3,0.001]
[1755758437021,11.87482916,4308.4,4308.3,0.001]
[1755758437555,11.58262916,4308.4,4308.3,0.001]
[1755758440525,11.58262916,4308.4,4308.3,0.7599]
[1755758442726,11.58262916,4308.4,4308.3,0.001]
[1755758442923,11.89142916,4308.4,4308.3,0.001]
[1755758444282,8.36642916,4308.4,4308.3,0.001]
[1755758444560,11.89042916,4308.4,4308.3,0.001]
[1755758444859,11.58162916,4308.4,4308.3,0.001]
[1755758445955,8.05762916,4308.4,4308.3,0.001]
[1755758446149,11.58162916,4308.4,4308.3,0.7426]
[1755758447033,0.4801,4308.4,4308.3,0.7426]
[1755758447263,11.21752916,4308.4,4308.3,0.7426]
[1755758454363,10.3802093,4308.4,4308.3,0.7426]
[1755758454773,6.8562093,4308.4,4308.3,0.7426]
[1755758455069,10.3802093,4308.4,4308.3,0.7426]
[1755758462078,0.116,4308.4,4308.3,0.7426]
[1755758462241,6.8562093,4308.4,4308.3,0.7426]
[1755758462787,0.116,4308.4,4308.3,0.7426]
[1755758462946,6.8562093,4308.4,4308.3,0.7426]
[1755758473999,7.89413023,4308.4,4308.3,0.001]
[1755758474308,11.51613023,4308.4,4308.3,0.001]
[1755758475074,11.41713023,4308.4,4308.3,0.001]
[1755758475471,1.15392093,4308.4,4308.3,0.001]
[1755758475676,10.3792093,4308.4,4308.3,0.4615]
[1755758478578,10.3792093,4308.4,4308.3,0.7623]
[1755758479309,6.8562093,4308.4,4308.3,0.7623]
[1755758479490,10.3792093,4308.4,4308.3,0.7623]
[1755758479690,3.639,4308.4,4308.3,0.7623]
[1755758479911,10.7431093,4308.4,4308.3,0.7623]
[1755758482528,10.7421093,4308.4,4308.3,0.7623]
[1755758482903,7.2201093,4308.4,4308.3,0.7623]
[1755758483099,10.7421093,4308.4,4308.3,0.7623]
[1755758485337,0.116,4308.4,4308.3,0.7623]
[1755758485514,0.002,4308.8,4308.3,7.5025093]
[1755758485697,0.002,4308.8,4308.5,6.7402093]
[1755758485896,0.002,4308.8,4308.4,0.48371047]
[1755758485897,0.002,4309.3,4308.7,7.0410093]
[1755758486203,0.002,4309.3,4308.7,0.3008]
[1755758486406,0.002,4309.3,4308.8,0.4605]
[1755758486609,0.002,4309.3,4309.2,0.3008]
[1755758487195,0.002,4309.3,4309.2,0.7613]
[1755758495512,0.118,4309.3,4309.2,0.7613]
[1755758525058,0.118,4309.3,4309.2,4.2803]
[1755758532566,0.118,4309.3,4309.2,4.30350616]
[1755758534097,0.118,4309.3,4309.2,4.3963]
[1755758534098,0.002,4309.3,4309.2,4.3963]
[1755758534664,0.002,4309.3,4309.2,4.5143]
[1755758540587,0.002,4309.3,4309.2,11.27204968]
[1755758540785,0.002,4309.3,4309.2,18.64338704]
[1755758540996,0.002,4309.3,4309.2,23.96400339]
[1755758542119,0.002,4309.3,4309.2,23.84800339]
[1755758542321,0.002,4309.3,4309.2,23.96400339]
[1755758542822,0.002,4309.4,4309.3,5.9805625]
[1755758543018,0.002,4309.4,4309.3,6.7317625]
[1755758543234,0.002,4309.6,4309.5,5.9804548]
[1755758543390,0.002,4309.6,4309.5,17.38343008]
[1755758543588,0.002,4309.6,4309.5,17.93593008]
[1755758548994,0.002,4309.6,4309.5,18.02891408]
[1755758550236,0.002,4309.6,4309.5,18.02791408]
[1755758550399,0.002,4309.6,4309.5,8.137184]
[1755758550764,0.101,4309.6,4309.5,3.725984]
[1755758551233,0.101,4309.6,4309.5,0.208984]
[1755758551551,0.101,4309.6,4309.5,3.724984]
[1755758552632,0.101,4309.6,4309.5,15.70645928]
[1755758552633,0.002,4309.6,4309.5,15.70645928]
[1755758553003,0.002,4309.6,4309.5,8.136184]
[1755758553411,0.002,4309.6,4309.5,7.699684]
[1755758553693,0.002,4309.6,4309.5,7.384984]
[1755758554542,0.002,4309.6,4309.5,8.136184]
[1755758555414,3.0,4312.1,4309.6,3.66]
[1755758555711,3.0,4312.1,4309.5,7.583684]
[1755758555712,7.57027528,4310.3,4309.9,0.116]
[1755758555935,0.41856936,4310.3,4310.0,3.516]
[1755758556254,0.116,4310.5,4310.0,3.516]
[1755758556816,0.116,4310.5,4310.1,3.516]
[1755758557619,7.57027528,4310.3,4310.1,3.516]
[1755758558327,7.57027528,4310.3,4309.7,0.116]
[1755758558527,7.57027528,4310.3,4309.8,3.516]
[1755758560830,0.116,4310.5,4309.8,3.516]
[1755758561143,0.116,4310.5,4309.9,0.4365]
[1755758561345,0.116,4310.5,4309.8,3.516]
[1755758561548,0.116,4310.6,4310.0,0.116]
[1755758562220,7.68627528,4310.6,4310.0,0.116]
[1755758566936,7.68627528,4310.6,4310.1,0.02320131]
[1755758567149,7.68627528,4310.6,4310.2,0.4316]
[1755758567349,0.116,4310.6,4310.3,3.516]
[1755758567645,0.116,4310.6,4310.4,0.4316]